bitfinex/quotes_ETHUSD_20250414
["timestamp","ask_amount","ask_price","bid_price","bid_amount"]
[1744604805597,0.31823671,1633.9,1633.8,0.97933]
[1744604805770,5.79098287,1634.1,1633.7,9.79349]
[1744604805954,10.68681287,1634.1,1633.7,4.89674]
[1744604806246,4.89604,1634.0,1633.7,4.89674]
[1744604807605,4.89657,1633.8,1633.5,0.7971]
[1744604807800,0.8188,1633.8,1633.5,4.89744]
[1744604807951,0.8188,1633.8,1633.6,4.89709]
[1744604808275,0.8188,1633.8,1633.5,4.89745]
[1744604808492,5.71547,1633.8,1633.4,5.877238]
[1744604808798,0.07651703,1633.7,1633.4,4.89772]
[1744604808950,9.87048703,1633.7,1633.3,11.20305]
[1744604809153,9.87048703,1633.7,1633.3,13.12601375]
[1744604809359,4.97341703,1633.7,1633.3,13.12586375]
[1744604809591,0.07651703,1633.7,1633.4,9.79522]
[1744604809995,0.07651703,1633.7,1633.5,4.8974]
[1744604810202,5.79190204,1633.8,1633.5,4.8974]
[1744604810601,10.68867204,1633.8,1633.4,4.89759]
[1744604810780,5.79190204,1633.8,1633.4,9.79521]
[1744604810975,5.79190204,1633.8,1633.4,4.89759]
[1744604811178,6.86072224,1633.8,1633.4,4.89759]
[1744604811382,4.97339944,1633.7,1633.4,4.89759]
[1744604811581,4.89763,1633.5,1633.1,12.01582]
[1744604811797,0.07653255,1633.5,1633.2,4.8983]
[1744604812094,0.07653255,1633.5,1633.2,6.59264957]
[1744604812274,0.7667,1633.4,1633.2,1.69445957]
[1744604812479,0.7667,1633.4,1633.2,6.59269957]
[1744604815080,0.7667,1633.4,1633.2,1.69445957]
[1744604815815,0.7667,1633.4,1633.1,11.20353]
[1744604815987,5.66461,1633.4,1633.1,6.305]
[1744604816319,10.56265,1633.4,1633.1,6.305]
[1744604816711,5.66461,1633.4,1633.1,6.305]
[1744604816919,5.74114232,1633.4,1633.1,11.20363]
[1744604817141,0.84323232,1633.4,1633.1,17.82381285]
[1744604817420,0.84323232,1633.5,1633.2,9.79646]
[1744604818222,0.84323232,1633.5,1633.2,4.89818]
[1744604819306,5.74071232,1633.5,1633.1,12.92529285]
[1744604819971,10.63834232,1633.5,1633.1,12.92529285]
[1744604821414,0.84323232,1633.5,1633.2,4.89832]
[1744604822527,0.84323216,1633.6,1633.4,4.89749]
[1744604822733,0.7667,1633.8,1633.5,5.70952]
[1744604823040,5.73919003,1634.0,1633.6,4.89699]
[1744604823215,5.73919003,1634.0,1633.7,4.89683]
[1744604823528,0.7667,1634.2,1633.7,5.876212]
[1744604823726,4.97233175,1634.1,1633.7,5.876212]
[1744604823890,4.89613,1634.0,1633.7,0.979382]
[1744604824840,5.79472186,1633.9,1633.5,12.01571]
[1744604825341,5.71822,1633.9,1633.6,4.89714]
[1744604825489,0.8218,1633.9,1633.6,4.89714]
[1744604825695,0.8218,1633.9,1633.6,9.79417]
[1744604825942,0.8218,1633.9,1633.6,4.89703]
[1744604826243,0.8218,1633.9,1633.6,9.79405]
[1744604826442,0.8218,1633.9,1633.7,0.979405]
[1744604827326,5.7175,1634.1,1633.7,5.876155]
[1744604827646,0.8218,1634.1,1633.8,4.89644]
[1744604828848,5.71746,1634.1,1633.8,4.89644]
[1744604830237,0.07650595,1634.2,1633.9,0.7609]
[1744604830443,9.86692311,1634.3,1633.9,5.65703]
[1744604831254,4.89542,1634.2,1633.8,4.89651]
[1744604831420,4.89542,1634.2,1633.7,6.637135]
[1744604831421,5.71757,1634.1,1633.7,6.637135]
[1744604831608,4.89606,1634.0,1633.7,1.740305]
[1744604831811,4.89606,1634.0,1633.7,6.637145]
[1744604832038,5.79406826,1634.1,1633.7,6.637145]
[1744604832354,0.8218,1634.1,1633.8,4.89635]
[1744604832750,5.79338552,1634.3,1633.9,4.89625]
[1744604832961,0.8218,1634.3,1634.0,5.65674]
[1744604833162,4.89418,1634.6,1634.2,4.89522]
[1744604833395,0.8218,1634.6,1634.3,4.8949]
[1744604833516,5.7918336,1634.8,1634.4,4.89457]
[1744604833718,11.75411496,1634.8,1634.4,4.89457]
[1744604834110,6.86034496,1634.8,1634.4,4.89457]
[1744604834441,6.86034496,1634.8,1634.4,9.78916]
[1744604835350,0.8218,1634.8,1634.5,4.89429]
[1744604835530,4.96974357,1634.9,1634.6,4.8941]
[1744604835723,12.01778,1635.0,1634.7,4.89379]
[1744604835724,7.1248,1635.0,1634.7,4.89379]
[1744604835949,0.07646081,1635.0,1634.7,4.89379]
[1744604836126,0.07645954,1635.2,1634.7,0.03032969]
[1744604836326,4.89237,1635.2,1634.9,5.65388]
[1744604836532,4.89237,1635.2,1634.8,4.89348]
[1744604836852,0.07645095,1635.1,1634.8,4.89348]
[1744604837844,4.96916095,1635.1,1634.7,11.9565]
[1744604838148,0.8218,1635.0,1634.7,11.9565]
[1744604838352,0.8218,1635.0,1634.8,4.89341]
[1744604838550,0.89825095,1635.1,1634.8,9.78677]
[1744604839148,5.75988798,1635.3,1634.9,4.89325]
[1744604839345,0.86775798,1635.3,1635.0,4.89294]
[1744604839938,5.75982798,1635.3,1635.0,4.89294]
[1744604840137,5.75982798,1635.3,1634.9,4.89315]
[1744604840551,5.75984798,1635.3,1634.8,4.89356]
[1744604840749,9.78514,1635.2,1634.8,6.7470946]
[1744604841071,4.89255,1635.2,1634.8,6.7470946]
[1744604842070,9.78512,1635.2,1634.8,6.7470946]
[1744604842253,4.89339,1634.9,1634.7,6.302]
[1744604842667,4.89339,1634.9,1634.6,4.89412]
[1744604842839,4.96984951,1634.9,1634.5,5.72521]
[1744604843374,4.96984951,1634.9,1634.5,12.611534]
[1744604843681,4.96984951,1634.9,1634.5,12.64187653]
[1744604843988,4.96984951,1634.9,1634.5,12.611534]
[1744604844291,0.07645951,1634.9,1634.6,4.89411]
[1744604844440,0.7913,1635.0,1634.7,4.89374]
[1744604844767,0.07645892,1634.9,1634.6,4.89416]
[1744604844971,6.33698959,1635.0,1634.6,9.78819]
[1744604845177,6.33698959,1635.0,1634.7,4.89384]
[1744604845381,6.33698959,1635.0,1634.6,4.89403]
[1744604845544,6.33698959,1635.0,1634.6,9.78803]
[1744604845742,6.33698959,1635.0,1634.6,4.894]
[1744604845942,6.33698959,1635.0,1634.6,9.788]
[1744604846544,6.33698959,1635.0,1634.6,9.78799]
[1744604846774,6.33698959,1635.0,1634.6,4.89399]
[1744604847175,6.33694959,1635.0,1634.6,4.89399]
[1744604847377,0.07646491,1634.9,1634.6,4.89399]
[1744604847579,4.96973491,1634.9,1634.5,11.780784]
[1744604847766,4.96973491,1634.9,1634.6,4.89412]
[1744604847966,0.07646491,1634.9,1634.6,4.89412]
[1744604849480,4.96974491,1634.9,1634.6,4.89412]
[1744604849666,6.56078113,1634.9,1634.6,4.89412]
[1744604851084,0.46801327,1634.9,1634.6,4.89405]
[1744604851279,6.33693981,1635.0,1634.6,9.78808]
[1744604851687,11.23007981,1635.0,1634.6,4.89403]
[1744604851852,4.89331,1634.9,1634.6,4.89403]
[1744604852385,0.7913,1635.0,1634.7,0.8309]
[1744604852585,5.68396,1635.1,1634.8,4.89343]
[1744604852751,6.14854471,1635.1,1634.8,4.89343]
[1744604852947,6.14854471,1635.1,1634.8,4.92374759]
[1744604853151,1.25588471,1635.1,1634.8,4.92374759]
[1744604853580,1.25588471,1635.1,1634.8,5.98857535]
[1744604854379,0.07645336,1635.2,1634.8,1.09514535]
[1744604854581,5.6777,1635.3,1634.9,5.44305]
[1744604855278,0.7856,1635.3,1635.1,4.89262]
[1744604855475,4.98824268,1635.4,1635.1,4.89262]
[1744604855987,5.45149725,1635.4,1635.1,4.89262]
[1744604856387,10.34343725,1635.4,1635.0,5.6664]
[1744604856588,10.34343725,1635.4,1635.1,0.56664]
[1744604856787,4.89209,1635.3,1635.1,0.56664]
[1744604859470,5.72341397,1635.2,1634.8,11.98465]
[1744604859670,0.7546,1635.2,1634.9,9.78628]
[1744604859897,0.7546,1635.2,1634.9,4.92344945]
[1744604860204,5.72322965,1635.3,1634.9,4.92339945]
[1744604860405,5.37091283,1635.4,1634.9,4.92339945]
[1744604860406,4.98823939,1635.4,1635.1,4.89261]
[1744604860571,4.98823939,1635.4,1635.1,0.7922]
[1744604860572,9.88018939,1635.4,1635.1,0.7922]
[1744604860901,4.98823939,1635.4,1635.0,4.89284]
[1744604861101,4.98823939,1635.4,1635.0,6.00567]
[1744604861465,4.98823939,1635.4,1635.0,10.92880561]
[1744604861671,0.02,1635.4,1635.1,4.89265]
[1744604861870,0.02,1635.4,1635.2,4.89226]
[1744604862071,0.02,1635.4,1635.3,4.89206]
[1744604862507,0.02,1635.4,1635.3,5.949706]
[1744604864408,0.02,1635.4,1635.1,4.89262]
[1744604864707,4.89225,1635.3,1635.0,4.89296]
[1744604864889,4.96869392,1635.3,1635.0,4.89296]
[1744604865090,4.89244,1635.2,1634.9,0.7922]
[1744604865296,10.53967,1635.2,1634.8,4.89355]
[1744604865604,4.96915005,1635.1,1634.7,10.57979]
[1744604865906,4.89343,1634.9,1634.6,6.294]
[1744604866106,5.72449129,1634.9,1634.6,6.294]
[1744604866570,5.64803,1634.9,1634.6,6.294]
[1744604866975,5.64803,1634.9,1634.5,5.68648]
[1744604867174,5.64803,1634.9,1634.6,4.92448648]
[1744604867391,5.64803,1634.9,1634.6,4.89415]
[1744604867621,4.89356,1634.8,1634.5,5.68648]
[1744604867806,4.89356,1634.8,1634.5,6.310128]
[1744604867977,5.64803,1634.9,1634.5,6.310128]
[1744604868306,5.72449356,1634.9,1634.5,11.204428]
[1744604868511,5.72449356,1634.9,1634.5,6.310128]
[1744604869297,5.72449356,1634.9,1634.5,11.204408]
[1744604870599,5.72449356,1634.9,1634.5,6.310128]
[1744604870800,1.89280992,1634.9,1634.3,14.18896]
[1744604871030,0.7546,1634.6,1634.3,11.98116]
[1744604871531,0.07647272,1634.5,1634.1,0.7922]
[1744604871737,4.97116272,1634.5,1633.9,61.30952751]
[1744604871917,4.89485,1634.4,1634.0,15.95297815]
[1744604872231,4.89485,1634.4,1634.0,15.92259275]
[1744604873226,4.89485,1634.4,1634.1,4.89565]
[1744604873603,4.89485,1634.4,1634.0,11.02674275]
[1744604873900,4.89485,1634.4,1634.0,15.92256275]
[1744604874101,5.44054604,1634.5,1634.1,6.48789628]
[1744604874397,10.33520604,1634.5,1634.1,6.48789628]
[1744604874735,5.64951,1634.4,1634.0,15.92253275]
[1744604875906,4.89508,1634.3,1633.9,8.81660751]
[1744604876102,4.89508,1634.3,1633.8,12.65045728]
[1744604876103,0.07649203,1634.3,1633.8,12.65045728]
[1744604876335,4.89568,1634.1,1633.8,6.96170728]
[1744604876542,4.97217869,1634.1,1633.7,5.68894]
[1744604876736,0.07649869,1634.1,1633.7,0.7922]
[1744604876910,0.7546,1634.2,1633.9,9.79237]
[1744604877107,0.83110406,1634.4,1633.8,0.55]
[1744604877316,0.7546,1634.4,1634.1,4.89537]
[1744604877521,5.72557666,1634.5,1634.2,4.89531]
[1744604877740,4.89476,1634.4,1634.0,5.68811]
[1744604877933,5.72559666,1634.5,1634.1,9.791]
[1744604878251,5.72559666,1634.5,1634.1,4.89548]
[1744604878448,5.72559666,1634.5,1634.1,5.953839]
[1744604879159,10.62024666,1634.5,1634.1,5.953839]
[1744604879329,4.89498,1634.4,1634.1,1.058359]
[1744604879529,9.78992,1634.4,1634.0,5.68803]
[1744604879729,4.89494,1634.4,1634.0,5.68802]
[1744604879931,5.72559666,1634.5,1634.1,0.55]
[1744604880126,0.07648027,1634.6,1634.3,4.89505]
[1744604880332,0.7587,1634.8,1634.4,0.82256819]
[1744604880540,0.7587,1634.8,1634.5,4.89421]
[1744604880741,0.7587,1634.8,1634.5,9.78857]
[1744604881061,0.7587,1634.8,1634.5,4.89421]
[1744604881421,5.65228,1634.8,1634.5,4.89421]
[1744604882060,5.72842852,1634.9,1634.6,4.89416]
[1744604882220,0.83516852,1634.9,1634.6,4.89416]
[1744604882436,0.83516852,1634.9,1634.6,9.7882]
[1744604882647,0.83516852,1634.9,1634.6,10.76702]
[1744604882648,0.7587,1634.9,1634.6,10.76702]
[1744604882958,0.7587,1634.9,1634.6,5.87286]
[1744604883165,0.7587,1635.0,1634.7,4.89386]
[1744604883467,4.89278,1635.1,1634.8,5.71873]
[1744604883633,0.07645617,1635.1,1634.8,5.71873]
[1744604885167,0.07645617,1635.1,1634.8,5.71864]
[1744604885735,4.96923617,1635.1,1634.8,0.8252]
[1744604885938,0.83515627,1635.2,1634.8,0.8252]
[1744604886145,4.89279,1635.1,1634.8,4.89355]
[1744604886461,5.72777627,1635.2,1634.8,4.89355]
[1744604886649,5.72777627,1635.2,1634.8,9.81728474]
[1744604886844,5.72777627,1635.2,1634.9,4.89325]
[1744604887047,6.8357519,1635.2,1634.9,4.89325]
[1744604887435,11.7283719,1635.2,1634.8,4.89342]
[1744604887835,6.8357519,1635.2,1634.8,4.89342]
[1744604888366,6.8357519,1635.2,1634.8,4.9237347]
[1744604888593,6.8357519,1635.2,1634.9,4.89324]
[1744604888937,1.9431319,1635.2,1634.9,4.89324]
[1744604889362,0.83515627,1635.2,1634.9,4.89324]
[1744604889781,0.88845195,1635.3,1635.0,4.89285]
[1744604890342,0.02,1635.4,1635.2,4.89236]
[1744604890571,0.02,1635.4,1635.3,5.65756]
[1744604890768,0.02,1635.4,1635.3,6.712552]
[1744604891365,0.02,1635.4,1635.3,7.262552]
[1744604893781,0.02,1635.4,1635.3,7.2928085]
[1744604893945,0.02,1635.4,1635.3,7.262552]
[1744604895393,0.02,1635.4,1635.3,6.712552]
[1744604895554,0.02,1635.4,1635.2,4.89236]
[1744604895879,0.02,1635.4,1635.2,4.89224]
[1744604896094,0.02,1635.4,1635.2,9.7844]
[1744604896287,0.02,1635.4,1635.3,5.65756]
[1744604896598,0.02,1635.4,1635.3,6.20756]
[1744604896886,0.02,1635.4,1635.3,7.317536]
[1744604897876,0.02,1635.4,1635.3,19.7660211]
[1744604898060,0.02,1635.4,1635.3,19.73578351]
[1744604898260,0.02,1635.4,1635.3,22.767536]
[1744604898588,0.02,1635.4,1635.3,23.23612553]
[1744604901387,0.02,1635.4,1635.3,9.767536]
[1744604901572,0.02,1635.4,1635.3,9.002036]
[1744604901775,0.02,1635.4,1635.2,4.8922]
[1744604901983,0.02,1635.4,1635.3,4.89206]
[1744604902780,0.02,1635.4,1635.2,4.92246061]
[1744604902781,0.02,1635.4,1635.2,4.89218]
[1744604903375,0.02,1635.4,1635.2,9.78443]
[1744604903608,0.02,1635.4,1635.3,4.89206]
[1744604903990,0.02,1635.4,1635.2,4.89218]
[1744604904188,0.02,1635.4,1635.2,4.92246052]
[1744604904388,0.02,1635.4,1635.3,9.34320751]
[1744604904938,4.89224,1635.3,1635.0,0.7729]
[1744604905099,4.89224,1635.3,1634.9,4.89319]
[1744604905418,0.818,1635.2,1634.9,7.89306]
[1744604905602,0.818,1635.2,1635.1,4.89266]
[1744604905988,0.09644392,1635.4,1635.1,9.78532]
[1744604905989,0.91444392,1635.4,1635.1,9.78532]
[1744604906188,0.838,1635.4,1635.2,4.89233]
[1744604906388,0.838,1635.4,1635.2,4.89222]
[1744604906783,0.02,1635.4,1635.3,4.89206]
[1744604907433,0.02,1635.4,1635.3,5.47232735]
[1744604907607,0.02,1635.4,1635.3,6.21496]
[1744604907811,0.02,1635.4,1635.3,7.325674]
[1744604908096,0.02,1635.4,1635.3,10.45392151]
[1744604909115,0.02,1635.4,1635.3,13.45392151]
[1744604910404,0.02,1635.4,1635.3,19.74292151]
[1744604911005,0.02,1635.4,1635.2,11.05218]
[1744604911204,0.02,1635.4,1635.3,4.89206]
[1744604911927,0.02,1635.4,1635.2,4.89224]
[1744604912616,0.02,1635.4,1635.3,4.89206]
[1744604915139,0.02,1635.4,1635.3,4.92232348]
[1744604915318,0.02,1635.4,1635.3,5.90377383]
[1744604915829,0.02,1635.4,1635.3,5.87351035]
[1744604916742,0.02,1635.4,1635.3,4.89206]
[1744604917706,0.02,1635.4,1635.2,4.89218]
[1744604919229,0.02,1635.4,1635.3,4.89206]
[1744604921754,0.02,1635.4,1635.2,4.89218]
[1744604921912,0.8201,1635.3,1635.1,4.89265]
[1744604924043,1.393288,1635.3,1634.8,5.66233]
[1744604924220,5.71317,1635.0,1634.6,9.78804]
[1744604924424,5.78962762,1635.0,1634.7,4.8938]
[1744604925130,0.8201,1635.2,1635.0,4.89296]
[1744604925528,0.8201,1635.2,1634.9,4.89321]
[1744604925849,0.8201,1635.2,1635.0,4.89292]
[1744604926043,0.8201,1635.2,1635.1,4.89266]
[1744604926461,0.8201,1635.2,1635.0,4.89292]
[1744604926977,0.8201,1635.2,1635.0,4.8928]
[1744604927174,0.8201,1635.2,1635.1,4.89266]
[1744604927374,0.91654238,1635.4,1635.2,4.89236]
[1744604927532,1.49734462,1635.4,1635.2,4.89236]
[1744604928471,6.38927462,1635.4,1635.0,4.89289]
[1744604928632,11.28125462,1635.4,1635.0,4.89289]
[1744604928957,1.49734462,1635.4,1634.9,4.89308]
[1744604929131,0.7856,1635.2,1634.9,4.89308]
[1744604929332,0.86204593,1635.2,1634.9,4.89308]
[1744604929533,0.86204593,1635.2,1634.9,9.78621]
[1744604930367,0.86204593,1635.2,1634.9,4.89308]
[1744604930930,0.7856,1635.2,1634.9,4.92338914]
[1744604931131,0.7856,1635.2,1635.0,4.89296]
[1744604933365,0.7856,1635.2,1635.0,9.78575]
[1744604933764,0.7856,1635.2,1635.0,4.89279]
[1744604935564,0.7856,1635.2,1634.9,4.89323]
[1744604936760,0.7856,1635.2,1634.9,9.78633]
[1744604936936,0.7856,1635.2,1634.9,4.8931]
[1744604937363,5.77385834,1635.4,1635.1,4.89266]
[1744604937739,5.77385834,1635.4,1635.0,9.78582]
[1744604937971,5.77385834,1635.4,1635.1,4.89263]
[1744604938282,0.88204834,1635.4,1635.1,9.78515]
[1744604938643,0.88204834,1635.4,1635.1,4.89252]
[1744604938881,5.77395834,1635.4,1635.1,4.89252]
[1744604939059,0.57739583,1635.3,1635.0,4.89295]
[1744604939389,0.57739583,1635.3,1635.0,9.78576]
[1744604939534,5.77395834,1635.4,1635.1,4.89262]
[1744604940073,0.88204834,1635.4,1635.1,9.78518]
[1744604940247,0.88204834,1635.4,1635.1,4.89256]
[1744604940451,5.77384834,1635.4,1635.0,10.5903]
[1744604940663,0.57738483,1635.3,1635.0,5.6974]
[1744604941274,5.77384834,1635.4,1635.0,4.92315895]
[1744604941594,5.77384834,1635.4,1635.1,4.89253]
[1744604942574,4.89207,1635.3,1635.0,4.89286]
[1744604942747,5.77384834,1635.4,1635.0,9.78568]
[1744604942947,5.77384834,1635.4,1635.0,4.89282]
[1744604943282,0.7856,1635.2,1634.9,4.89325]
[1744604943444,0.86205181,1635.2,1634.9,4.89316]
[1744604944445,0.86205181,1635.2,1634.8,4.92386576]
[1744604944446,0.90215252,1635.4,1635.1,4.89255]
[1744604945245,0.90215252,1635.4,1635.1,9.78505]
[1744604945479,0.8257,1635.4,1635.0,0.79911206]
[1744604945683,0.8257,1635.4,1635.1,4.89263]
[1744604946677,0.8257,1635.4,1634.9,16.07435]
[1744604946678,5.71749,1635.4,1634.9,16.07435]
[1744604946880,4.96863093,1635.3,1634.9,11.18112]
[1744604947179,0.9021456,1635.4,1635.1,4.89241]
[1744604947374,0.07644093,1635.3,1635.0,4.89293]
[1744604947580,4.96853093,1635.3,1635.0,4.89293]
[1744604948077,0.07644093,1635.3,1635.0,1.607414]
[1744604948296,0.8057,1636.2,1635.8,0.7688]
[1744604948492,0.8057,1636.2,1635.8,4.89055]
[1744604948775,0.8057,1636.2,1635.6,0.7688]
[1744604948776,4.89015,1636.0,1635.6,5.65996]
[1744604948977,4.94295721,1635.9,1635.4,5.66039]
[1744604949167,0.8057,1635.7,1635.4,4.89159]
[1744604949349,0.85826721,1635.7,1635.5,0.19099032]
[1744604949544,0.85826721,1635.7,1635.6,0.19099032]
[1744604949858,0.85826721,1635.7,1635.5,0.19099032]
[1744604950261,1.43315293,1635.7,1635.5,0.19099032]
[1744604951058,11.98298,1635.9,1635.6,4.89115]
[1744604951259,0.8057,1636.1,1635.8,4.89057]
[1744604951457,0.05256721,1636.0,1635.8,4.89057]
[1744604952363,0.85826721,1636.1,1635.9,0.19097668]
[1744604952570,1.43305293,1636.1,1635.9,0.19097668]
[1744604952774,1.43305293,1636.1,1635.8,9.78103]
[1744604953482,0.05256721,1636.2,1635.9,4.89023]
[1744604953646,0.05256721,1636.2,1635.9,5.08119596]
[1744604954070,0.05256721,1636.2,1635.9,4.89009]
[1744604955083,0.8057,1636.3,1636.1,4.88967]
[1744604955395,0.8057,1636.3,1636.1,4.88956]
[1744604955544,0.8057,1636.3,1636.0,4.88993]
[1744604955959,0.8057,1636.3,1636.0,9.84086804]
[1744604956147,0.8057,1636.3,1636.0,9.77975]
[1744604956681,0.8057,1636.3,1636.1,4.88966]
[1744604957501,0.8057,1636.3,1636.0,4.8898]
[1744604957697,5.69479,1636.3,1635.9,5.65896]
[1744604957859,4.94219721,1636.2,1635.8,9.7808]
[1744604958051,0.7728,1636.1,1635.8,9.7808]
[1744604958258,0.7728,1635.8,1635.5,4.89136]
[1744604958474,0.7728,1635.8,1635.6,5.380276]
[1744604958784,0.82536721,1636.2,1636.0,4.88982]
[1744604958953,0.7728,1636.2,1635.9,4.8902]
[1744604959353,0.05256721,1636.1,1635.9,4.8902]
[1744604959652,0.82536721,1636.2,1635.9,4.89022]
[1744604960189,5.71476721,1636.2,1635.9,4.89027]
[1744604960549,5.71476721,1636.2,1635.8,4.89038]
[1744604961396,5.71476721,1636.2,1635.8,9.78083]
[1744604961887,7.1328266,1636.2,1635.8,9.78082]
[1744604962092,7.1328266,1636.2,1635.8,9.78084]
[1744604962282,2.2434266,1636.2,1635.9,4.89025]
[1744604962807,7.1328166,1636.2,1635.9,4.89025]
[1744604963392,7.1328166,1636.2,1635.8,4.89038]
[1744604963890,5.60308166,1636.1,1635.7,4.89084]
[1744604964094,0.05256721,1636.1,1635.8,4.89036]
[1744604964294,0.05256721,1636.1,1635.9,4.89026]
[1744604965023,4.94227721,1636.1,1635.8,4.89036]
[1744604965294,0.05256721,1636.1,1635.8,4.89036]
[1744604965664,0.7822,1636.0,1635.8,4.89036]
[1744604965865,0.7822,1636.0,1635.7,9.7816]
[1744604966076,0.7822,1636.0,1635.8,4.89047]
[1744604966581,0.7822,1636.0,1635.9,4.89027]
[1744604966778,0.7822,1636.0,1635.8,4.89047]
[1744604966981,0.7822,1636.0,1635.7,4.89076]
[1744604967392,5.67217,1636.0,1635.7,4.89076]
[1744604967596,0.05256721,1635.9,1635.7,4.89076]
[1744604967799,0.05256721,1635.9,1635.6,4.89115]
[1744604968583,0.05256721,1635.9,1635.6,9.78214]
[1744604969500,0.05256721,1635.9,1635.7,4.89086]
[1744604970401,0.05256721,1635.9,1635.6,4.89099]
[1744604970806,0.05256721,1635.9,1635.6,9.78203]
[1744604970993,0.05256721,1635.9,1635.6,10.760233]
[1744604972702,0.83476721,1636.2,1635.8,0.55]
[1744604972905,0.83476721,1636.2,1635.9,5.08097701]
[1744604973104,0.83476721,1636.2,1635.9,9.97112701]
[1744604973276,0.83476721,1636.2,1635.9,9.78016]
[1744604973671,0.83476721,1636.2,1635.9,4.89001]
[1744604974079,5.72414721,1636.2,1635.9,4.89001]
[1744604974406,6.78547993,1636.2,1635.8,4.89052]
[1744604975295,6.78547993,1636.2,1635.8,9.78097]
[1744604975672,6.78547993,1636.2,1635.9,0.19097729]
[1744604975874,6.78547993,1636.2,1635.8,9.78097]
[1744604976511,6.78547993,1636.2,1635.8,4.89045]
[1744604976904,11.67513993,1636.2,1635.8,4.89045]
[1744604977095,6.05718399,1636.1,1635.9,0.19097305]
[1744604977295,0.05256721,1636.0,1635.9,0.19097305]
[1744604977805,0.83696721,1636.0,1635.9,0.19097305]
[1744604979711,5.72693721,1636.0,1635.9,0.19097305]
[1744604980313,5.72693721,1636.0,1635.7,4.89084]
[1744604980613,5.72693721,1636.0,1635.8,0.1909973]
[1744604981013,0.83696721,1636.0,1635.8,0.1909973]
[1744604981210,0.83696721,1636.0,1635.8,5.0815573]
[1744604981380,0.83696721,1636.0,1635.9,0.1909973]
[1744604981575,1.52638233,1636.0,1635.9,0.1909973]
[1744604982128,11.86319,1636.4,1635.9,9.02598481]
[1744604982337,4.94180721,1636.3,1636.0,4.88997]
[1744604982816,4.94180721,1636.3,1636.1,0.1909973]
[1744604983179,4.94180721,1636.3,1636.0,4.88997]
[1744604983382,6.62230693,1636.3,1636.0,4.88997]
[1744604984415,6.62230693,1636.3,1636.1,0.19096462]
[1744604985016,6.62230693,1636.3,1636.0,4.88997]
[1744604985210,4.94180721,1636.3,1636.0,4.88997]
[1744604985539,0.05256721,1636.3,1636.0,4.88997]
[1744604985832,0.05256721,1636.3,1636.1,0.19095604]
[1744604986229,7.02696721,1636.4,1636.1,0.19095604]
[1744604986402,7.02696721,1636.4,1636.2,4.88937]
[1744604986597,7.02696721,1636.4,1636.2,5.08032604]
[1744604986803,11.91588721,1636.4,1636.2,0.19095604]
[1744604987009,11.91588721,1636.4,1636.0,4.88994]
[1744604987207,11.91588721,1636.4,1636.0,5.949608]
[1744604987414,11.91588721,1636.4,1636.1,0.19095704]
[1744604987608,16.80484721,1636.4,1636.1,0.19095704]
[1744604987825,16.75228,1636.4,1636.1,0.19095704]
[1744604988026,0.05256721,1636.3,1636.1,0.19095704]
[1744604988320,0.05256721,1636.3,1636.2,0.19095704]
[1744604989093,0.05256721,1636.3,1636.1,0.19095704]
[1744604990046,0.05256721,1636.3,1636.2,0.19095704]
[1744604990948,4.94163721,1636.3,1636.2,0.19095704]
[1744604991130,10.41430993,1636.3,1636.2,0.19095704]
[1744604991324,4.88991,1636.1,1635.7,4.89085]
[1744604991497,4.94253721,1636.0,1635.7,4.89085]
[1744604991698,0.7922,1635.9,1635.7,4.89085]
[1744604991901,0.7922,1635.9,1635.8,0.1909843]
[1744604993125,6.25594372,1635.9,1635.8,0.1909843]
[1744604993436,4.89078,1635.8,1635.4,4.89161]
[1744604993593,0.05256721,1635.7,1635.4,9.78327]
[1744604993803,0.05256721,1635.7,1635.5,0.19101456]
[1744604994236,0.05256721,1635.7,1635.6,0.19101456]
[1744604995417,0.05256721,1635.8,1635.7,4.89087]
[1744604995633,0.05256721,1635.9,1635.7,5.08188456]
[1744604996203,0.05256721,1635.9,1635.7,4.89087]
[1744604996408,0.05256721,1635.9,1635.6,5.39928746]
[1744604996938,0.05256721,1636.0,1635.7,9.78139]
[1744604997237,0.05256721,1636.0,1635.8,0.978139]
[1744604998106,0.05256721,1636.0,1635.7,9.78143]
[1744604998424,0.05256721,1636.0,1635.8,0.19098696]
[1744604998835,0.05256721,1636.0,1635.6,5.39937746]
[1744604999036,4.94264721,1636.0,1635.7,4.89076]
[1744604999755,9.83280721,1636.0,1635.6,5.39937746]
[1744605000068,4.94264721,1636.0,1635.7,0.19100123]
[1744605000264,4.94264721,1636.0,1635.7,5.08175123]
[1744605000561,4.94264721,1636.0,1635.8,0.19100123]
[1744605000863,0.7922,1636.3,1635.8,5.75640116]
[1744605001149,0.86476721,1636.4,1636.1,5.69443]
[1744605001515,5.75355721,1636.4,1636.2,0.1909491]
[1744605002040,5.75355721,1636.4,1636.1,5.69443]
[1744605002240,4.88929,1636.3,1635.9,4.89025]
[1744605002446,4.94185721,1636.3,1635.9,4.95123108]
[1744605002644,9.83111721,1636.3,1635.9,4.89011]
[1744605002825,0.05256721,1636.3,1636.0,5.0808965]
[1744605003022,0.05256721,1636.3,1636.1,0.8048]
[1744605003215,0.07256721,1636.4,1636.1,5.69423]
[1744605003409,0.07256721,1636.4,1636.1,11.153193]
[1744605003615,0.07256721,1636.4,1636.1,6.263653]
[1744605003913,0.07256721,1636.4,1636.1,5.69423]
[1744605004846,4.88947,1636.2,1635.8,1.3233]
[1744605005017,4.88947,1636.2,1635.8,6.21372]
[1744605005221,4.8891,1636.3,1635.9,5.08105937]
[1744605005450,4.94166721,1636.3,1635.9,5.08105937]
[1744605005654,4.94166721,1636.3,1636.0,5.08092937]
[1744605005858,0.05256721,1636.3,1636.1,4.88951]
[1744605006026,5.71864721,1636.4,1636.0,5.08091937]
[1744605006222,0.7773,1636.4,1636.1,5.08052937]
[1744605006740,0.7773,1636.4,1636.1,4.88956]
[1744605007149,0.7773,1636.4,1636.1,9.77907]
[1744605007318,5.6662,1636.4,1636.0,4.88993]
[1744605007518,5.6662,1636.4,1636.2,0.1909468]